{"text_format":"1","workbook":"xlsx","n_sheets":4,"sheets":["Title","Data","Wrap Up","Source"],"not_rendered":{"charts":0,"images":6,"macros":0,"external_links":1,"defined_names":12,"comments":0,"pivot_tables":0},"unopened":[],"bounds":{"document_bytes":16777216,"sheet_cells":100000,"rows_first":2000,"rows_last":500,"rows_between":2000,"halvings":0,"cell_chars":16384,"cell_head_chars":4096},"cells_cut":0,"cells_raw":0,"read":"whole","date_system":"1900"}

{"sheet":"Title","index":0,"n_rows":25,"n_cols":13,"rows_kept":25,"cut":false,"hidden":false,"merged":[]}
[]
[]
[]
[]
[]
[]
[null,null,null,null,null,null,null,null,null,null,null,null,2154]
[]
[]
[]
[]
[]
[]
[]
[]
[]
[]
[]
[]
[]
[]
[]
[]
[]
["Image credit: Free-Photos / Pixabay"]

{"sheet":"Data","index":1,"n_rows":165,"n_cols":27,"rows_kept":165,"cut":false,"hidden":false,"merged":[]}
["Customer","Jan","Feb","Mar","Q1","Apr","May","Jun","Q2",null,null,null,null,null,null,null,null,null,null,null,null,null,"Revenue",null,"COGS",null,"Profit"]
["Southwest Airlines",1234,1234,1234,{"$f":"SUM(B2:D2)","v":3702},1234,1234,1234,{"$f":"SUM(F2:H2)","v":3702},null,null,null,null,null,null,null,null,null,null,null,null,null,2257,null,984,null,1273]
["Merck",{"$f":"INDEX(Source!$B$2:$D$6,RANDBETWEEN(1,3),RANDBETWEEN(1,3))","v":4915},1234,1234,{"$f":"SUM(B3:D3)","v":7383},{"$f":"INDEX(Source!$B$2:$D$6,RANDBETWEEN(1,3),RANDBETWEEN(1,3))","v":4721},1234,{"$f":"INDEX(Source!$B$2:$D$6,RANDBETWEEN(1,3),RANDBETWEEN(1,3))","v":8508},{"$f":"SUM(F3:H3)","v":14463},null,null,null,null,null,null,null,null,null,null,null,null,null,18552,null,7872,null,10680]
["Texaco",1234,1234,1234,3702,1234,1234,1234,3702,null,null,null,null,null,null,null,null,null,null,null,null,null,9152,null,4088,null,5064]
["Cummins Inc.",1234,{"$f":"INDEX(Source!$B$2:$D$6,RANDBETWEEN(1,3),RANDBETWEEN(1,3))","v":2053},1234,4521,1234,{"$f":"INDEX(Source!$B$2:$D$6,RANDBETWEEN(1,3),RANDBETWEEN(1,3))","v":4721},1234,7189,null,null,null,null,null,null,null,null,null,null,null,null,null,22810,null,10220,null,12590]
["State Farm",1234,1234,1234,3702,1234,1234,{"$f":"INDEX(Source!$B$2:$D$6,RANDBETWEEN(1,3),RANDBETWEEN(1,3))","v":3914},6382,null,null,null,null,null,null,null,null,null,null,null,null,null,21730,null,9840,null,11890]
["General Motors",1234,{"$f":"[1]Sheet1!$A$1","v":9999},1234,12467,{"$f":"INDEX(Source!$B$2:$D$6,RANDBETWEEN(1,3),RANDBETWEEN(1,3))","v":3914},1234,1234,6382,null,null,null,null,null,null,null,null,null,null,null,null,null,8456,null,3388,null,5068]
["Wal-Mart",1234,1234,{"$f":"INDEX(Source!$B$2:$D$6,RANDBETWEEN(1,3),RANDBETWEEN(1,3))","v":3914},6382,1234,{"$f":"INDEX(Source!$B$2:$D$6,RANDBETWEEN(1,3),RANDBETWEEN(1,3))","v":4721},1234,7189,null,null,null,null,null,null,null,null,null,null,null,null,null,21438,null,9198,null,12240]
["IBM",1234,{"$f":"INDEX(Source!$B$2:$D$6,RANDBETWEEN(1,3),RANDBETWEEN(1,3))","v":2053},1234,4521,1234,1234,1234,3702,null,null,null,null,null,null,null,null,null,null,null,null,null,6267,null,2541,null,3726]
["AT&T",1234,1234,1234,3702,1234,1234,1234,3702,null,null,null,null,null,null,null,null,null,null,null,null,null,2401,null,1022,null,1379]
["CitiGroup",{"$f":"INDEX(Source!$B$2:$D$6,RANDBETWEEN(1,3),RANDBETWEEN(1,3))","v":9210},1234,1234,11678,1234,1234,{"$f":"INDEX(Source!$B$2:$D$6,RANDBETWEEN(1,3),RANDBETWEEN(1,3))","v":8570},11038,null,null,null,null,null,null,null,null,null,null,null,null,null,11628,null,5082,null,6546]
["SBC Communications",1234,1234,1234,3702,1234,1234,1234,3702,null,null,null,null,null,null,null,null,null,null,null,null,null,2042,null,984,null,1058]
["General Electric",1234,1234,1234,3702,1234,{"$f":"INDEX(Source!$B$2:$D$6,RANDBETWEEN(1,3),RANDBETWEEN(1,3))","v":4721},1234,7189,null,null,null,null,null,null,null,null,null,null,null,null,null,3552,null,1694,null,1858]
["Boeing",1234,{"$f":"INDEX(Source!$B$2:$D$6,RANDBETWEEN(1,3),RANDBETWEEN(1,3))","v":2053},1234,4521,1234,1234,1234,3702,null,null,null,null,null,null,null,null,null,null,null,null,null,14440,null,6776,null,7664]
["Exxon",1234,1234,1234,3702,1234,1234,1234,3702,null,null,null,null,null,null,null,null,null,null,null,null,null,14592,null,6776,null,7816]
["Total",{"$f":"SUM(B2:B15)","v":28933},28498,19956,77387,23443,27737,34566,85746,null,null,null,null,null,null,null,null,null,null,null,null,null,12606,null,5082,null,7524]
[null,null,null,null,null,null,null,null,null,null,null,null,null,null,null,null,null,null,null,null,null,null,16936,null,8176,null,8760]
[null,null,null,null,null,null,null,null,null,null,null,null,null,null,null,null,null,null,null,null,null,null,11430,null,5082,null,6348]
[null,null,null,null,null,null,null,null,null,null,null,null,null,null,null,null,null,null,null,null,null,null,20250,null,8470,null,11780]
[null,null,null,null,null,null,null,null,null,null,null,null,null,null,null,null,null,null,null,null,null,null,10385,null,4235,null,6150]
[null,null,null,null,null,null,null,null,null,null,null,null,null,null,null,null,null,null,null,null,null,null,5700,null,2541,null,3159]
[null,null,null,null,null,null,null,null,null,null,null,null,null,null,null,null,null,null,null,null,null,null,23810,null,10220,null,13590]
[null,null,null,null,null,null,null,null,null,null,null,null,null,null,null,null,null,null,null,null,null,null,11525,null,5110,null,6415]
[null,null,null,null,null,null,null,null,null,null,null,null,null,null,null,null,null,null,null,null,null,null,20610,null,8856,null,11754]
[null,null,null,null,null,null,null,null,null,null,null,null,null,null,null,null,null,null,null,null,null,null,13206,null,5904,null,7302]
[null,null,null,null,null,null,null,null,null,null,null,null,null,null,null,null,null,null,null,null,null,null,25140,null,10220,null,14920]
[null,null,null,null,null,null,null,null,null,null,null,null,null,null,null,null,null,null,null,null,null,null,16209,null,7623,null,8586]
[null,null,null,null,null,null,null,null,null,null,null,null,null,null,null,null,null,null,null,null,null,null,8708,null,3936,null,4772]
[null,null,null,null,null,null,null,null,null,null,null,null,null,null,null,null,null,null,null,null,null,null,21456,null,9198,null,12258]
[null,null,null,null,null,null,null,null,null,null,null,null,null,null,null,null,null,null,null,null,null,null,10445,null,5110,null,5335]
[null,null,null,null,null,null,null,null,null,null,null,null,null,null,null,null,null,null,null,null,null,null,14472,null,5904,null,8568]
[null,null,null,null,null,null,null,null,null,null,null,null,null,null,null,null,null,null,null,null,null,null,4262,null,2044,null,2218]
[null,null,null,null,null,null,null,null,null,null,null,null,null,null,null,null,null,null,null,null,null,null,12474,null,5929,null,6545]
[null,null,null,null,null,null,null,null,null,null,null,null,null,null,null,null,null,null,null,null,null,null,10155,null,4235,null,5920]
[null,null,null,null,null,null,null,null,null,null,null,null,null,null,null,null,null,null,null,null,null,null,19503,null,8856,null,10647]
[null,null,null,null,null,null,null,null,null,null,null,null,null,null,null,null,null,null,null,null,null,null,1819,null,847,null,972]
[null,null,null,null,null,null,null,null,null,null,null,null,null,null,null,null,null,null,null,null,null,null,24430,null,10220,null,14210]
[null,null,null,null,null,null,null,null,null,null,null,null,null,null,null,null,null,null,null,null,null,null,10935,null,5110,null,5825]
[null,null,null,null,null,null,null,null,null,null,null,null,null,null,null,null,null,null,null,null,null,null,8116,null,3388,null,4728]
[null,null,null,null,null,null,null,null,null,null,null,null,null,null,null,null,null,null,null,null,null,null,18783,null,9198,null,9585]
[null,null,null,null,null,null,null,null,null,null,null,null,null,null,null,null,null,null,null,null,null,null,16696,null,6776,null,9920]
[null,null,null,null,null,null,null,null,null,null,null,null,null,null,null,null,null,null,null,null,null,null,7132,null,3388,null,3744]
[null,null,null,null,null,null,null,null,null,null,null,null,null,null,null,null,null,null,null,null,null,null,4784,null,2044,null,2740]
[null,null,null,null,null,null,null,null,null,null,null,null,null,null,null,null,null,null,null,null,null,null,6765,null,3066,null,3699]
[null,null,null,null,null,null,null,null,null,null,null,null,null,null,null,null,null,null,null,null,null,null,5355,null,2541,null,2814]
[null,null,null,null,null,null,null,null,null,null,null,null,null,null,null,null,null,null,null,null,null,null,3756,null,1694,null,2062]
[null,null,null,null,null,null,null,null,null,null,null,null,null,null,null,null,null,null,null,null,null,null,20090,null,9840,null,10250]
[null,null,null,null,null,null,null,null,null,null,null,null,null,null,null,null,null,null,null,null,null,null,23090,null,10220,null,12870]
[null,null,null,null,null,null,null,null,null,null,null,null,null,null,null,null,null,null,null,null,null,null,5358,null,2541,null,2817]
[null,null,null,null,null,null,null,null,null,null,null,null,null,null,null,null,null,null,null,null,null,null,21357,null,8856,null,12501]
[null,null,null,null,null,null,null,null,null,null,null,null,null,null,null,null,null,null,null,null,null,null,16016,null,7872,null,8144]
[null,null,null,null,null,null,null,null,null,null,null,null,null,null,null,null,null,null,null,null,null,null,5370,null,2541,null,2829]
[null,null,null,null,null,null,null,null,null,null,null,null,null,null,null,null,null,null,null,null,null,null,20408,null,8176,null,12232]
[null,null,null,null,null,null,null,null,null,null,null,null,null,null,null,null,null,null,null,null,null,null,2466,null,1022,null,1444]
[null,null,null,null,null,null,null,null,null,null,null,null,null,null,null,null,null,null,null,null,null,null,5886,null,2541,null,3345]
[null,null,null,null,null,null,null,null,null,null,null,null,null,null,null,null,null,null,null,null,null,null,14686,null,5929,null,8757]
[null,null,null,null,null,null,null,null,null,null,null,null,null,null,null,null,null,null,null,null,null,null,12095,null,4920,null,7175]
[null,null,null,null,null,null,null,null,null,null,null,null,null,null,null,null,null,null,null,null,null,null,6063,null,2541,null,3522]
[null,null,null,null,null,null,null,null,null,null,null,null,null,null,null,null,null,null,null,null,null,null,11598,null,5082,null,6516]
[null,null,null,null,null,null,null,null,null,null,null,null,null,null,null,null,null,null,null,null,null,null,8016,null,3388,null,4628]
[null,null,null,null,null,null,null,null,null,null,null,null,null,null,null,null,null,null,null,null,null,null,4948,null,2044,null,2904]
[null,null,null,null,null,null,null,null,null,null,null,null,null,null,null,null,null,null,null,null,null,null,21880,null,10220,null,11660]
[null,null,null,null,null,null,null,null,null,null,null,null,null,null,null,null,null,null,null,null,null,null,15834,null,7154,null,8680]
[null,null,null,null,null,null,null,null,null,null,null,null,null,null,null,null,null,null,null,null,null,null,2457,null,984,null,1473]
[null,null,null,null,null,null,null,null,null,null,null,null,null,null,null,null,null,null,null,null,null,null,5439,null,2541,null,2898]
[null,null,null,null,null,null,null,null,null,null,null,null,null,null,null,null,null,null,null,null,null,null,11435,null,4920,null,6515]
[null,null,null,null,null,null,null,null,null,null,null,null,null,null,null,null,null,null,null,null,null,null,22530,null,10220,null,12310]
[null,null,null,null,null,null,null,null,null,null,null,null,null,null,null,null,null,null,null,null,null,null,25060,null,10220,null,14840]
[null,null,null,null,null,null,null,null,null,null,null,null,null,null,null,null,null,null,null,null,null,null,4124,null,2044,null,2080]
[null,null,null,null,null,null,null,null,null,null,null,null,null,null,null,null,null,null,null,null,null,null,19520,null,7872,null,11648]
[null,null,null,null,null,null,null,null,null,null,null,null,null,null,null,null,null,null,null,null,null,null,3802,null,1694,null,2108]
[null,null,null,null,null,null,null,null,null,null,null,null,null,null,null,null,null,null,null,null,null,null,19288,null,8176,null,11112]
[null,null,null,null,null,null,null,null,null,null,null,null,null,null,null,null,null,null,null,null,null,null,12318,null,5082,null,7236]
[null,null,null,null,null,null,null,null,null,null,null,null,null,null,null,null,null,null,null,null,null,null,8052,null,3936,null,4116]
[null,null,null,null,null,null,null,null,null,null,null,null,null,null,null,null,null,null,null,null,null,null,8785,null,4235,null,4550]
[null,null,null,null,null,null,null,null,null,null,null,null,null,null,null,null,null,null,null,null,null,null,12625,null,5110,null,7515]
[null,null,null,null,null,null,null,null,null,null,null,null,null,null,null,null,null,null,null,null,null,null,9380,null,4235,null,5145]
[null,null,null,null,null,null,null,null,null,null,null,null,null,null,null,null,null,null,null,null,null,null,6156,null,2952,null,3204]
[null,null,null,null,null,null,null,null,null,null,null,null,null,null,null,null,null,null,null,null,null,null,17757,null,8856,null,8901]
[null,null,null,null,null,null,null,null,null,null,null,null,null,null,null,null,null,null,null,null,null,null,4846,null,2044,null,2802]
[null,null,null,null,null,null,null,null,null,null,null,null,null,null,null,null,null,null,null,null,null,null,11208,null,5082,null,6126]
[null,null,null,null,null,null,null,null,null,null,null,null,null,null,null,null,null,null,null,null,null,null,10195,null,4920,null,5275]
[null,null,null,null,null,null,null,null,null,null,null,null,null,null,null,null,null,null,null,null,null,null,4012,null,1694,null,2318]
[null,null,null,null,null,null,null,null,null,null,null,null,null,null,null,null,null,null,null,null,null,null,11700,null,5082,null,6618]
[null,null,null,null,null,null,null,null,null,null,null,null,null,null,null,null,null,null,null,null,null,null,2319,null,984,null,1335]
[null,null,null,null,null,null,null,null,null,null,null,null,null,null,null,null,null,null,null,null,null,null,12048,null,5904,null,6144]
[null,null,null,null,null,null,null,null,null,null,null,null,null,null,null,null,null,null,null,null,null,null,17964,null,7623,null,10341]
[null,null,null,null,null,null,null,null,null,null,null,null,null,null,null,null,null,null,null,null,null,null,6660,null,3066,null,3594]
[null,null,null,null,null,null,null,null,null,null,null,null,null,null,null,null,null,null,null,null,null,null,13412,null,5929,null,7483]
[null,null,null,null,null,null,null,null,null,null,null,null,null,null,null,null,null,null,null,null,null,null,18918,null,9198,null,9720]
[null,null,null,null,null,null,null,null,null,null,null,null,null,null,null,null,null,null,null,null,null,null,13986,null,5929,null,8057]
[null,null,null,null,null,null,null,null,null,null,null,null,null,null,null,null,null,null,null,null,null,null,20480,null,9840,null,10640]
[null,null,null,null,null,null,null,null,null,null,null,null,null,null,null,null,null,null,null,null,null,null,4264,null,2044,null,2220]
[null,null,null,null,null,null,null,null,null,null,null,null,null,null,null,null,null,null,null,null,null,null,4282,null,1968,null,2314]
[null,null,null,null,null,null,null,null,null,null,null,null,null,null,null,null,null,null,null,null,null,null,12135,null,5110,null,7025]
[null,null,null,null,null,null,null,null,null,null,null,null,null,null,null,null,null,null,null,null,null,null,4286,null,1968,null,2318]
[null,null,null,null,null,null,null,null,null,null,null,null,null,null,null,null,null,null,null,null,null,null,10650,null,5110,null,5540]
[null,null,null,null,null,null,null,null,null,null,null,null,null,null,null,null,null,null,null,null,null,null,19630,null,8470,null,11160]
[null,null,null,null,null,null,null,null,null,null,null,null,null,null,null,null,null,null,null,null,null,null,12838,null,5929,null,6909]
[null,null,null,null,null,null,null,null,null,null,null,null,null,null,null,null,null,null,null,null,null,null,3856,null,1694,null,2162]
[null,null,null,null,null,null,null,null,null,null,null,null,null,null,null,null,null,null,null,null,null,null,22140,null,9840,null,12300]
[null,null,null,null,null,null,null,null,null,null,null,null,null,null,null,null,null,null,null,null,null,null,10330,null,4235,null,6095]
[null,null,null,null,null,null,null,null,null,null,null,null,null,null,null,null,null,null,null,null,null,null,1882,null,847,null,1035]
[null,null,null,null,null,null,null,null,null,null,null,null,null,null,null,null,null,null,null,null,null,null,2221,null,984,null,1237]
[null,null,null,null,null,null,null,null,null,null,null,null,null,null,null,null,null,null,null,null,null,null,13734,null,5929,null,7805]
[null,null,null,null,null,null,null,null,null,null,null,null,null,null,null,null,null,null,null,null,null,null,4754,null,1968,null,2786]
[null,null,null,null,null,null,null,null,null,null,null,null,null,null,null,null,null,null,null,null,null,null,2231,null,984,null,1247]
[null,null,null,null,null,null,null,null,null,null,null,null,null,null,null,null,null,null,null,null,null,null,22716,null,9198,null,13518]
[null,null,null,null,null,null,null,null,null,null,null,null,null,null,null,null,null,null,null,null,null,null,7167,null,3066,null,4101]
[null,null,null,null,null,null,null,null,null,null,null,null,null,null,null,null,null,null,null,null,null,null,19062,null,9198,null,9864]
[null,null,null,null,null,null,null,null,null,null,null,null,null,null,null,null,null,null,null,null,null,null,7593,null,3066,null,4527]
[null,null,null,null,null,null,null,null,null,null,null,null,null,null,null,null,null,null,null,null,null,null,21168,null,8856,null,12312]
[null,null,null,null,null,null,null,null,null,null,null,null,null,null,null,null,null,null,null,null,null,null,24130,null,10220,null,13910]
[null,null,null,null,null,null,null,null,null,null,null,null,null,null,null,null,null,null,null,null,null,null,8876,null,4088,null,4788]
[null,null,null,null,null,null,null,null,null,null,null,null,null,null,null,null,null,null,null,null,null,null,21555,null,8856,null,12699]
[null,null,null,null,null,null,null,null,null,null,null,null,null,null,null,null,null,null,null,null,null,null,15876,null,7154,null,8722]
[null,null,null,null,null,null,null,null,null,null,null,null,null,null,null,null,null,null,null,null,null,null,5967,null,2541,null,3426]
[null,null,null,null,null,null,null,null,null,null,null,null,null,null,null,null,null,null,null,null,null,null,25350,null,10220,null,15130]
[null,null,null,null,null,null,null,null,null,null,null,null,null,null,null,null,null,null,null,null,null,null,11545,null,4920,null,6625]
[null,null,null,null,null,null,null,null,null,null,null,null,null,null,null,null,null,null,null,null,null,null,4158,null,1694,null,2464]
[null,null,null,null,null,null,null,null,null,null,null,null,null,null,null,null,null,null,null,null,null,null,18660,null,8470,null,10190]
[null,null,null,null,null,null,null,null,null,null,null,null,null,null,null,null,null,null,null,null,null,null,11660,null,4920,null,6740]
[null,null,null,null,null,null,null,null,null,null,null,null,null,null,null,null,null,null,null,null,null,null,15816,null,7872,null,7944]
[null,null,null,null,null,null,null,null,null,null,null,null,null,null,null,null,null,null,null,null,null,null,23890,null,10220,null,13670]
[null,null,null,null,null,null,null,null,null,null,null,null,null,null,null,null,null,null,null,null,null,null,13936,null,6776,null,7160]
[null,null,null,null,null,null,null,null,null,null,null,null,null,null,null,null,null,null,null,null,null,null,17840,null,8470,null,9370]
[null,null,null,null,null,null,null,null,null,null,null,null,null,null,null,null,null,null,null,null,null,null,12984,null,6132,null,6852]
[null,null,null,null,null,null,null,null,null,null,null,null,null,null,null,null,null,null,null,null,null,null,21800,null,9840,null,11960]
[null,null,null,null,null,null,null,null,null,null,null,null,null,null,null,null,null,null,null,null,null,null,5508,null,2541,null,2967]
[null,null,null,null,null,null,null,null,null,null,null,null,null,null,null,null,null,null,null,null,null,null,9704,null,4088,null,5616]
[null,null,null,null,null,null,null,null,null,null,null,null,null,null,null,null,null,null,null,null,null,null,13433,null,5929,null,7504]
[null,null,null,null,null,null,null,null,null,null,null,null,null,null,null,null,null,null,null,null,null,null,19584,null,9198,null,10386]
[null,null,null,null,null,null,null,null,null,null,null,null,null,null,null,null,null,null,null,null,null,null,15288,null,6776,null,8512]
[null,null,null,null,null,null,null,null,null,null,null,null,null,null,null,null,null,null,null,null,null,null,2320,null,1022,null,1298]
[null,null,null,null,null,null,null,null,null,null,null,null,null,null,null,null,null,null,null,null,null,null,6138,null,2541,null,3597]
[null,null,null,null,null,null,null,null,null,null,null,null,null,null,null,null,null,null,null,null,null,null,12030,null,5904,null,6126]
[null,null,null,null,null,null,null,null,null,null,null,null,null,null,null,null,null,null,null,null,null,null,9384,null,4088,null,5296]
[null,null,null,null,null,null,null,null,null,null,null,null,null,null,null,null,null,null,null,null,null,null,5904,null,2541,null,3363]
[null,null,null,null,null,null,null,null,null,null,null,null,null,null,null,null,null,null,null,null,null,null,18684,null,9198,null,9486]
[null,null,null,null,null,null,null,null,null,null,null,null,null,null,null,null,null,null,null,null,null,null,1836,null,847,null,989]
[null,null,null,null,null,null,null,null,null,null,null,null,null,null,null,null,null,null,null,null,null,null,15006,null,6132,null,8874]
[null,null,null,null,null,null,null,null,null,null,null,null,null,null,null,null,null,null,null,null,null,null,1913,null,847,null,1066]
[null,null,null,null,null,null,null,null,null,null,null,null,null,null,null,null,null,null,null,null,null,null,17856,null,8176,null,9680]
[null,null,null,null,null,null,null,null,null,null,null,null,null,null,null,null,null,null,null,null,null,null,8744,null,4088,null,4656]
[null,null,null,null,null,null,null,null,null,null,null,null,null,null,null,null,null,null,null,null,null,null,19368,null,9198,null,10170]
[null,null,null,null,null,null,null,null,null,null,null,null,null,null,null,null,null,null,null,null,null,null,1819,null,847,null,972]
[null,null,null,null,null,null,null,null,null,null,null,null,null,null,null,null,null,null,null,null,null,null,4440,null,2044,null,2396]
[null,null,null,null,null,null,null,null,null,null,null,null,null,null,null,null,null,null,null,null,null,null,10990,null,5110,null,5880]
[null,null,null,null,null,null,null,null,null,null,null,null,null,null,null,null,null,null,null,null,null,null,6309,null,2541,null,3768]
[null,null,null,null,null,null,null,null,null,null,null,null,null,null,null,null,null,null,null,null,null,null,18904,null,7872,null,11032]
[null,null,null,null,null,null,null,null,null,null,null,null,null,null,null,null,null,null,null,null,null,null,18072,null,8176,null,9896]
[null,null,null,null,null,null,null,null,null,null,null,null,null,null,null,null,null,null,null,null,null,null,2012,null,847,null,1165]
[null,null,null,null,null,null,null,null,null,null,null,null,null,null,null,null,null,null,null,null,null,null,1877,null,847,null,1030]
[null,null,null,null,null,null,null,null,null,null,null,null,null,null,null,null,null,null,null,null,null,null,1957,null,847,null,1110]
[null,null,null,null,null,null,null,null,null,null,null,null,null,null,null,null,null,null,null,null,null,null,2095,null,1022,null,1073]
[null,null,null,null,null,null,null,null,null,null,null,null,null,null,null,null,null,null,null,null,null,null,4866,null,1968,null,2898]
[null,null,null,null,null,null,null,null,null,null,null,null,null,null,null,null,null,null,null,null,null,null,5457,null,2541,null,2916]
[null,null,null,null,null,null,null,null,null,null,null,null,null,null,null,null,null,null,null,null,null,null,5826,null,2541,null,3285]
[null,null,null,null,null,null,null,null,null,null,null,null,null,null,null,null,null,null,null,null,null,null,7944,null,3388,null,4556]
[null,null,null,null,null,null,null,null,null,null,null,null,null,null,null,null,null,null,null,null,null,null,9350,null,4235,null,5115]
[null,null,null,null,null,null,null,null,null,null,null,null,null,null,null,null,null,null,null,null,null,null,10295,null,4235,null,6060]
[null,null,null,null,null,null,null,null,null,null,null,null,null,null,null,null,null,null,null,null,null,null,10602,null,5082,null,5520]
[null,null,null,null,null,null,null,null,null,null,null,null,null,null,null,null,null,null,null,null,null,null,11845,null,4920,null,6925]
[null,null,null,null,null,null,null,null,null,null,null,null,null,null,null,null,null,null,null,null,null,null,12330,null,5082,null,7248]
[null,null,null,null,null,null,null,null,null,null,null,null,null,null,null,null,null,null,null,null,null,null,12480,null,6132,null,6348]

{"sheet":"Wrap Up","index":2,"n_rows":11,"n_cols":2,"rows_kept":11,"cut":false,"hidden":false,"merged":[]}
["Topics in this Episode"]
[]
[null,"Use conditional formatting to mark formula cells"]
[null,"New Rule, Use a Formula, =ISFORMULA(A1)"]
[null,"Thanks to Craig Brody: mark formula cells that are links to other sheets"]
[null,"New Rule, Use a Formula, =ISNUMBER(FIND(\"!\"),FormulaText(A1)))"]
[null,"Extending this:  To mark cells pointing to external workbooks, use"]
[null,"this formula: =ISNUMBER(FIND(\"]\",FORMULATEXT(A1)))"]
[null,"You can use AutoSum in Several Cells at Once"]
[null,"When you are editing a formula in conditional formatting box and press the arrow to move, "]
[null,"you will get cell references. To prevent this, use F2 to change Enter mode to Edit mode"]

{"sheet":"Source","index":3,"n_rows":6,"n_cols":4,"rows_kept":6,"cut":false,"hidden":false,"merged":[]}
[]
[null,4915,2053,8406]
[null,8570,3914,4721]
[null,8508,9210,4624]
[null,2885,1919,5759]
[null,6461,9981,8736]